[Event "24th European Women Club Cup 2019"]
[Site "Ulcinj"]
[Date "2019.11.16"]
[Round "7.10"]
[White "Paehtz, Elisabeth"]
[Black "Muzychuk, Anna"]
[Result "1/2-1/2"]
[ECO "A48"]
[WhiteElo "2484"]
[BlackElo "2543"]
[Annotator "ChessBase"]
[PlyCount "108"]
[EventDate "2019.11.10"]
[EventType "team-tourn"]
[EventCountry "MNE"]
[SourceTitle "playchess.com"]
[Source "ChessBase"]
[SourceQuality "1"]
[WhiteTeam "Pentole Agnelli"]
[BlackTeam "Kyiv"]
[TimeControl "40/5400+30:1800+30"]

1. d4 {[%emt 0:00:00]} Nf6 {[%emt 0:00:00]} 2. Nf3 {[%emt 0:00:00]} g6 {[%emt 0:00:00]} 3. Bg5 {[%emt 0:00:00]} Bg7 {[%emt 0:00:10]} 4. Nbd2 {[%emt 0:00:00]} d5 {[%emt 0:00:58]} 5. e3 {[%emt 0:00:00]} O-O {[%emt 0:00:33]} 6. c3 {[%emt 0:00:01]} Nbd7 {[%emt 0:01:45]} 7. Be2 {[%emt 0:00:06]} Re8 {[%emt 0:01:07]} 8. O-O {[%emt 0:00:07]} e5 {[%emt 0:02:43]} 9. h3 {[%emt 0:00:04]} c6 {[%emt 0:04:55]} 10. Bh4 {[%emt 0:03:58]} Qb6 {[%emt 0:11:18]} 11. Qc2 {[%emt 0:03:18]} c5 {[%emt 0:03:35]} 12. Rac1 {[%emt 0:02:32]} Qc6 {[%emt 0:07:56]} 13. a4 {[%emt 0:21:45]} a6 {[%emt 0:00:48]} 14. a5 {[%emt 0:00:18]} Ne4 {[%emt 0:06:24]} 15. c4 {[%emt 0:07:35]} Nxd2 {[%emt 0:09:58]} 16. Nxd2 {[%emt 0:08:53]} cxd4 {[%emt 0:09:26]} 17. cxd5 {[%emt 0:03:16]} Qxd5 {[%emt 0:02:43]} 18. Ne4 {[%emt 0:05:33]} Nf8 {[%emt 0:03:36]} 19. Bc4 {[%emt 0:01:26]} Qd7 {[%emt 0:04:18]} 20. exd4 {[%emt 0:04:57]} exd4 {[%emt 0:01:21]} 21. Rfe1 {[%emt 0:07:58]} Ne6 {[%emt 0:04:35]} 22. Nf6+ {[%emt 0:00:21]} Bxf6 {[%emt 0:00:05]} 23. Bxf6 {[%emt 0:00:05]} Qd6 {[%emt 0:01:08]} 24. Qd2 {[%emt 0:01:30]} Bd7 {[%emt 0:01:01]} 25. Be5 {[%emt 0:03:15]} Qf8 {[%emt 0:03:26]} 26. Bd5 {[%emt 0:02:14]} Rac8 {[%emt 0:00:29]} 27. Rxc8 {[%emt 0:02:01]} Bxc8 {[%emt 0:00:18]} 28. Bxe6 {[%emt 0:01:23]} Rxe6 {[%emt 0:02:57]} 29. Bxd4 {[%emt 0:00:06]} Rxe1+ {[%emt 0:04:08]} 30. Qxe1 {[%emt 0:00:04]} Qd8 {[%emt 0:02:14]} 31. Qc3 {[%emt 0:00:31]} Be6 {[%emt 0:01:44]} 32. Bh8 {[%emt 0:01:40]} Qd1+ {[%emt 0:03:51]} 33. Kh2 {[%emt 0:00:00]} Qd6+ {[%emt 0:00:04]} 34. Be5 {[%emt 0:00:17]} Qd5 {[%emt 0:03:41]} 35. f4 {[%emt 0:02:06]} Kf8 {[%emt 0:02:18]} 36. Bf6 {[%emt 0:00:50]} Qd6 {[%emt 0:01:31]} 37. Bg5 {[%emt 0:01:13]} Ke8 {[%emt 0:00:40]} 38. Qh8+ {[%emt 0:00:07]} Kd7 {[%emt 0:00:40]} 39. Qd8+ {[%emt 0:00:06]} Kc6 {[%emt 0:00:02]} 40. Qb6+ {[%emt 0:00:00]} Kd5 {[%emt 0:00:00]} 41. Qxb7+ {[%emt 0:00:41]} Qc6 {[%emt 0:01:32]} 42. Qb8 {[%emt 0:05:00]} Qd6 {[%emt 0:05:14]} 43. Qh8 {[%emt 0:04:13]} Kc6 {[%emt 0:09:49]} 44. Qxh7 {[%emt 0:08:21]} Qd2 {[%emt 0:00:46]} 45. Qh8 {[%emt 0:03:33]} Bd5 {[%emt 0:05:54]} 46. Qc3+ {[%emt 0:07:18]} Qxc3 {[%emt 0:00:04]} 47. bxc3 {[%emt 0:00:03]} Kb5 {[%emt 0:00:10]} 48. Bd8 {[%emt 0:06:09]} Kc4 {[%emt 0:00:06]} 49. g4 {[%emt 0:00:56]} Kxc3 {[%emt 0:01:05]} 50. Kg3 {[%emt 0:01:01]} f5 {[%emt 0:05:35]} 51. h4 {[%emt 0:08:54]} fxg4 {[%emt 0:01:26]} 52. Kxg4 {[%emt 0:00:07]} Be4 {[%emt 0:00:51]} 53. Kg5 {[%emt 0:00:07]} Kc4 {[%emt 0:00:22]} 54. Kf6 {[%emt 0:01:44]} Kd5 {[%emt 0:00:16] Ke6+} 1/2-1/2

[Event "24th European Women Club Cup 2019"]
[Site "Ulcinj"]
[Date "2019.11.16"]
[Round "7.11"]
[White "Abdumalik, Zhansaya"]
[Black "Zimina, Olga"]
[Result "1-0"]
[ECO "B40"]
[WhiteElo "2472"]
[BlackElo "2406"]
[Annotator "ChessBase"]
[PlyCount "109"]
[EventDate "2019.11.10"]
[EventType "team-tourn"]
[EventCountry "MNE"]
[SourceTitle "playchess.com"]
[Source "ChessBase"]
[SourceQuality "1"]
[WhiteTeam "Kyiv"]
[BlackTeam "Pentole Agnelli"]
[TimeControl "40/5400+30:1800+30"]

1. e4 {[%emt 0:00:00]} c5 {[%emt 0:00:00]} 2. Nf3 {[%emt 0:00:00]} e6 {[%emt 0:00:00]} 3. d4 {[%emt 0:00:16]} cxd4 {[%emt 0:00:00]} 4. Nxd4 {[%emt 0:00:03]} Nf6 {[%emt 0:00:00]} 5. Nc3 {[%emt 0:00:03]} Nc6 {[%emt 0:00:05]} 6. Ndb5 {[%emt 0:01:00]} Bb4 {[%emt 0:00:26]} 7. a3 {[%emt 0:02:47]} Bxc3+ {[%emt 0:00:09]} 8. Nxc3 {[%emt 0:00:03]} d5 {[%emt 0:00:13]} 9. exd5 {[%emt 0:02:41]} exd5 {[%emt 0:00:15]} 10. Bd3 {[%emt 0:00:03]} O-O {[%emt 0:00:10]} 11. O-O {[%emt 0:02:00]} d4 {[%emt 0:00:20]} 12. Ne2 {[%emt 0:04:35]} Bg4 {[%emt 0:00:29]} 13. h3 {[%emt 0:07:56]} Bh5 {[%emt 0:03:08]} 14. Qd2 {[%emt 0:01:18]} Bg6 {[%emt 0:01:11]} 15. Nf4 {[%emt 0:03:56]} Bxd3 {[%emt 0:01:18]} 16. Qxd3 {[%emt 0:00:24]} Re8 {[%emt 0:04:21]} 17. Rd1 {[%emt 0:04:07]} Rc8 {[%emt 0:00:57]} 18. Qb5 {[%emt 0:07:38]} Qa5 {[%emt 0:04:42]} 19. Qxa5 {[%emt 0:03:38]} Nxa5 {[%emt 0:00:09]} 20. b4 {[%emt 0:00:02]} Nc4 {[%emt 0:23:28]} 21. Kf1 {[%emt 0:01:29]} Nd6 {[%emt 0:38:23]} 22. Rxd4 {[%emt 0:04:36]} Nf5 {[%emt 0:06:30]} 23. Rd2 {[%emt 0:03:01]} Ne4 {[%emt 0:00:08]} 24. Rd5 {[%emt 0:01:15]} g6 {[%emt 0:00:09]} 25. g4 {[%emt 0:04:06]} Nh4 {[%emt 0:02:00]} 26. Ng2 {[%emt 0:07:08]} Nxg2 {[%emt 0:00:46]} 27. Kxg2 {[%emt 0:00:03]} Rxc2 {[%emt 0:00:07]} 28. Be3 {[%emt 0:00:49]} Nc3 {[%emt 0:05:20]} 29. Rd3 {[%emt 0:03:22]} Nd5 {[%emt 0:00:34]} 30. Bh6 {[%emt 0:00:08]} Nb6 {[%emt 0:02:24]} 31. a4 {[%emt 0:03:32]} Rc7 {[%emt 0:00:09]} 32. a5 {[%emt 0:01:34]} Nc4 {[%emt 0:00:33]} 33. Re1 {[%emt 0:06:37]} Rec8 {[%emt 0:05:19]} 34. Bf4 {[%emt 0:00:14]} Nb2 {[%emt 0:00:03]} 35. Rde3 {[%emt 0:04:11]} Rc2 {[%emt 0:00:53]} 36. Re8+ {[%emt 0:02:01]} Rxe8 {[%emt 0:00:05]} 37. Rxe8+ {[%emt 0:00:03]} Kg7 {[%emt 0:00:04]} 38. g5 {[%emt 0:00:10]} Nd3 {[%emt 0:02:09]} 39. Be3 {[%emt 0:00:55]} Rc4 {[%emt 0:00:07]} 40. b5 {[%emt 0:00:00]} Nf4+ {[%emt 0:00:00]} 41. Kh2 {[%emt 0:06:23]} Ne6 {[%emt 0:04:01]} 42. Rb8 {[%emt 0:02:48]} Ra4 {[%emt 0:09:45]} 43. Bd2 {[%emt 0:07:23]} Nd4 {[%emt 0:02:27]} 44. Bc3 {[%emt 0:01:43]} Rc4 {[%emt 0:00:10]} 45. Bxd4+ {[%emt 0:00:15]} Rxd4 {[%emt 0:00:06]} 46. Rxb7 {[%emt 0:00:03]} Rd5 {[%emt 0:04:31]} 47. h4 {[%emt 0:00:50]} Rf5 {[%emt 0:07:24]} 48. Kg3 {[%emt 0:00:19]} h6 {[%emt 0:02:59]} 49. f4 {[%emt 0:00:10]} h5 {[%emt 0:02:08]} 50. a6 {[%emt 0:00:38]} Rc5 {[%emt 0:00:25]} 51. Kf3 {[%emt 0:00:15]} Rd5 {[%emt 0:00:13]} 52. Ke4 {[%emt 0:00:51]} Rf5 {[%emt 0:00:04]} 53. Rxa7 {[%emt 0:00:19]} Rxb5 {[%emt 0:00:05]} 54. Rb7 {[%emt 0:00:05]} Ra5 {[%emt 0:01:33]} 55. a7 {[%emt 0:00:05]} 1-0

[Event "24th European Women Club Cup 2019"]
[Site "Ulcinj"]
[Date "2019.11.16"]
[Round "7.12"]
[White "Brunello, Marina"]
[Black "Gaponenko, Inna"]
[Result "1/2-1/2"]
[ECO "B33"]
[WhiteElo "2378"]
[BlackElo "2427"]
[Annotator "NA"]
[PlyCount "53"]
[EventDate "2019.11.10"]
[EventType "team-tourn"]
[EventCountry "MNE"]
[SourceTitle "playchess.com"]
[Source "ChessBase"]
[SourceQuality "1"]
[WhiteTeam "Pentole Agnelli"]
[BlackTeam "Kyiv"]
[TimeControl "40/5400+30:1800+30"]

1. e4 {[%emt 0:00:00]} c5 {[%emt 0:00:00]} 2. Nf3 {[%emt 0:00:00]} Nc6 {[%emt 0:00:00]} 3. d4 {[%emt 0:00:06]} cxd4 {[%emt 0:00:00]} 4. Nxd4 {[%emt 0:00:03]} Nf6 {[%emt 0:00:00]} 5. Nc3 {[%emt 0:00:06]} e5 {[%emt 0:00:09]} 6. Ndb5 {[%emt 0:00:11]} d6 {[%emt 0:00:08]} 7. Bg5 {[%emt 0:00:06]} a6 {[%emt 0:00:06]} 8. Na3 {[%emt 0:00:30]} b5 {[%emt 0:00:06]} 9. Nd5 {[%emt 0:00:00]} Be7 {[%emt 0:00:09]} 10. Bxf6 {[%emt 0:00:01]} Bxf6 {[%emt 0:00:05]} 11. c4 {[%emt 0:00:06]} b4 {[%emt 0:01:18]} 12. Nc2 {[%emt 0:00:13]} O-O {[%emt 0:00:30]} 13. Be2 {[%emt 0:01:03]} Bg5 {[%emt 0:03:34]} 14. O-O {[%emt 0:04:21]} a5 {[%emt 0:00:19]} 15. Qd3 {[%emt 0:00:25]} Be6 {[%emt 0:00:40]} 16. Rfd1 {[%emt 0:02:46]} g6 {[%emt 0:01:25]} 17. Bf3 {[%emt 0:04:01]} Kh8 {[%emt 0:02:36]} 18. Qe2 {[%emt 0:06:11]} Qb8 {[%emt 0:15:37]} 19. Rd3 {[%emt 0:09:43]} Ra7 {[%emt 0:09:25]} 20. b3 {[%emt 0:03:18]} f5 {[%emt 0:10:57]} 21. Rad1 {[%emt 0:05:44]} f4 {[%emt 0:18:35]} 22. Bg4 {[%emt 0:04:35]} Bg8 {[%emt 0:00:12]} 23. Qf3 {[%emt 0:02:09]} Rb7 {[%emt 0:04:14]} 24. Qh3 {[%emt 0:06:01]} Qe8 {[%emt 0:00:23]} 25. Qf3 {[%emt 0:00:28]} Qb8 {[%emt 0:16:05]} 26. Qh3 {[%emt 0:01:51]} Qe8 {[%emt 0:01:22]} 27. Qf3 {[%emt 0:00:31]} 1/2-1/2

[Event "24th European Women Club Cup 2019"]
[Site "Ulcinj"]
[Date "2019.11.16"]
[Round "7.13"]
[White "Injac, Teodora"]
[Black "Mammadzada, Gunay"]
[Result "0-1"]
[ECO "A07"]
[WhiteElo "2257"]
[BlackElo "2427"]
[Annotator "NA"]
[PlyCount "94"]
[EventDate "2019.11.10"]
[EventType "team-tourn"]
[EventCountry "MNE"]
[SourceTitle "playchess.com"]
[Source "ChessBase"]
[SourceQuality "1"]
[WhiteTeam "Jelica PEP"]
[BlackTeam "Odlar Yurdu"]
[TimeControl "40/5400+30:1800+30"]

1. Nf3 {[%emt 0:00:00]} d5 {[%emt 0:00:00]} 2. g3 {[%emt 0:00:04]} Nf6 {[%emt 0:00:10]} 3. Bg2 {[%emt 0:00:07]} c6 {[%emt 0:00:36]} 4. O-O {[%emt 0:00:26]} Bg4 {[%emt 0:00:12]} 5. c4 {[%emt 0:02:00]} e6 {[%emt 0:01:51]} 6. d3 {[%emt 0:00:28]} Nbd7 {[%emt 0:00:39]} 7. h3 {[%emt 0:05:34]} Bxf3 {[%emt 0:11:49]} 8. exf3 {[%emt 0:00:52]} Bd6 {[%emt 0:16:14]} 9. f4 {[%emt 0:01:48]} O-O {[%emt 0:01:09]} 10. Nc3 {[%emt 0:10:45]} Nb6 {[%emt 0:14:28]} 11. b3 {[%emt 0:04:35]} Qe7 {[%emt 0:04:07]} 12. Qc2 {[%emt 0:05:51]} Rfe8 {[%emt 0:08:03]} 13. Be3 {[%emt 0:07:13]} Rad8 {[%emt 0:03:24]} 14. a4 {[%emt 0:08:29]} Bb8 {[%emt 0:07:18]} 15. Ne2 {[%emt 0:01:40]} Nbd7 {[%emt 0:01:23]} 16. d4 {[%emt 0:07:44]} Nf8 {[%emt 0:02:30]} 17. c5 {[%emt 0:01:50]} N6d7 {[%emt 0:02:08]} 18. b4 {[%emt 0:02:08]} f6 {[%emt 0:03:38]} 19. b5 {[%emt 0:01:51]} e5 {[%emt 0:01:58]} 20. bxc6 {[%emt 0:01:12]} bxc6 {[%emt 0:00:01]} 21. Rab1 {[%emt 0:02:05]} Rc8 {[%emt 0:05:03]} 22. Rb7 {[%emt 0:14:16]} Rc7 {[%emt 0:06:16]} 23. Rfb1 {[%emt 0:10:25]} Ne6 {[%emt 0:02:31]} 24. Rxc7 {[%emt 0:03:42]} Bxc7 {[%emt 0:00:33]} 25. Rb7 {[%emt 0:03:52]} Bb8 {[%emt 0:02:04]} 26. Qb1 {[%emt 0:01:25]} Rc8 {[%emt 0:01:57]} 27. f5 {[%emt 0:02:00]} Nd8 {[%emt 0:00:13]} 28. Rb2 {[%emt 0:00:41]} exd4 {[%emt 0:01:49]} 29. Nxd4 {[%emt 0:00:03]} Bxg3 {[%emt 0:00:14]} 30. Rb3 {[%emt 0:01:22]} Be5 {[%emt 0:00:50]} 31. f4 {[%emt 0:00:22]} Nxc5 {[%emt 0:01:38]} 32. fxe5 {[%emt 0:00:35]} Nxb3 {[%emt 0:00:31]} 33. Qxb3 {[%emt 0:00:24]} Qxe5 {[%emt 0:00:41]} 34. Kf2 {[%emt 0:00:40]} Kh8 {[%emt 0:00:24]} 35. Qc2 {[%emt 0:00:24]} c5 {[%emt 0:00:36]} 36. Nf3 {[%emt 0:00:14]} Qd6 {[%emt 0:00:09]} 37. Qd2 {[%emt 0:00:33]} d4 {[%emt 0:00:29]} 38. Bf4 {[%emt 0:00:02]} Qd7 {[%emt 0:00:07]} 39. Nh4 {[%emt 0:01:07]} d3 {[%emt 0:00:59]} 40. Qd1 {[%emt 0:00:00]} Nf7 {[%emt 0:00:00]} 41. Qb3 {[%emt 0:25:27]} c4 {[%emt 0:07:15]} 42. Qb7 {[%emt 0:01:30]} Qxb7 {[%emt 0:00:49]} 43. Bxb7 {[%emt 0:00:02]} Rd8 {[%emt 0:00:14]} 44. Nf3 {[%emt 0:04:53]} c3 {[%emt 0:00:33]} 45. Ke1 {[%emt 0:00:24]} Ne5 {[%emt 0:03:36]} 46. Kd1 {[%emt 0:00:42]} d2 {[%emt 0:00:22]} 47. Be4 {[%emt 0:01:00]} Nc4 {[%emt 0:02:09]} 0-1

[Event "24th European Women Club Cup 2019"]
[Site "Ulcinj"]
[Date "2019.11.16"]
[Round "7.14"]
[White "Fataliyeva, Ulviyya"]
[Black "Velikic, Adela"]
[Result "1-0"]
[ECO "D10"]
[WhiteElo "2368"]
[BlackElo "2275"]
[Annotator "NA"]
[PlyCount "93"]
[EventDate "2019.11.10"]
[EventType "team-tourn"]
[EventCountry "MNE"]
[SourceTitle "playchess.com"]
[Source "ChessBase"]
[SourceQuality "1"]
[WhiteTeam "Odlar Yurdu"]
[BlackTeam "Jelica PEP"]
[TimeControl "40/5400+30:1800+30"]

1. d4 {[%emt 0:00:00]} d5 {[%emt 0:00:00]} 2. c4 {[%emt 0:00:00]} c6 {[%emt 0:00:00]} 3. Nc3 {[%emt 0:00:36]} Nf6 {[%emt 0:00:50]} 4. cxd5 {[%emt 0:00:20]} cxd5 {[%emt 0:00:06]} 5. Bf4 {[%emt 0:00:14]} Nc6 {[%emt 0:00:40]} 6. e3 {[%emt 0:00:32]} Bf5 {[%emt 0:01:53]} 7. Qb3 {[%emt 0:00:29]} Na5 {[%emt 0:00:27]} 8. Qa4+ {[%emt 0:00:06]} Bd7 {[%emt 0:00:09]} 9. Qc2 {[%emt 0:00:13]} e6 {[%emt 0:00:16]} 10. Nf3 {[%emt 0:00:32]} Rc8 {[%emt 0:00:35]} 11. Bd3 {[%emt 0:00:26]} Be7 {[%emt 0:01:17]} 12. Ne5 {[%emt 0:01:43]} O-O {[%emt 0:00:55]} 13. O-O {[%emt 0:06:02]} Nc4 {[%emt 0:02:51]} 14. Qe2 {[%emt 0:05:57]} b5 {[%emt 0:09:09]} 15. Nxd7 {[%emt 0:07:37]} Qxd7 {[%emt 0:00:16]} 16. b3 {[%emt 0:03:43]} b4 {[%emt 0:22:31]} 17. Nxd5 {[%emt 0:11:51]} Nxd5 {[%emt 0:03:38]} 18. Bxc4 {[%emt 0:00:07]} Nxf4 {[%emt 0:02:32]} 19. exf4 {[%emt 0:00:14]} Qxd4 {[%emt 0:04:42]} 20. f5 {[%emt 0:00:08]} e5 {[%emt 0:02:48]} 21. Rad1 {[%emt 0:00:11]} Qf4 {[%emt 0:09:11]} 22. Rd7 {[%emt 0:00:12]} Bc5 {[%emt 0:01:38]} 23. Qh5 {[%emt 0:01:11]} Kh8 {[%emt 0:09:22]} 24. g3 {[%emt 0:05:23]} Qe4 {[%emt 0:00:54]} 25. Ba6 {[%emt 0:21:12]} Rcd8 {[%emt 0:07:52]} 26. Bd3 {[%emt 0:00:38]} Qxd3 {[%emt 0:16:51]} 27. Rxd3 {[%emt 0:00:05]} Rxd3 {[%emt 0:00:04]} 28. f6 {[%emt 0:10:42]} gxf6 {[%emt 0:00:18]} 29. Qf5 {[%emt 0:00:13]} Rd6 {[%emt 0:00:49]} 30. Re1 {[%emt 0:01:37]} Rg8 {[%emt 0:01:50]} 31. Kg2 {[%emt 0:02:29]} Bd4 {[%emt 0:00:26]} 32. Re4 {[%emt 0:01:01]} Rg5 {[%emt 0:00:35]} 33. Qc8+ {[%emt 0:00:21]} Kg7 {[%emt 0:00:23]} 34. h4 {[%emt 0:00:31]} Rg6 {[%emt 0:00:22]} 35. h5 {[%emt 0:00:13]} Rg5 {[%emt 0:00:36]} 36. h6+ {[%emt 0:00:09]} Kg6 {[%emt 0:00:29]} 37. f4 exf4 {[%emt 0:00:41]} 38. Qg8+ {[%emt 0:05:41]} Kh5 {[%emt 0:00:31]} 39. Qxf7+ {[%emt 0:00:37]} Rg6 {[%emt 0:00:12]} 40. Rxf4 {[%emt 0:00:00]} Be5 {[%emt 0:00:00]} 41. Rh4+ {[%emt 0:04:39]} Kg5 {[%emt 0:00:43]} 42. Qxh7 {[%emt 0:00:42]} Rd2+ {[%emt 0:03:52]} 43. Kh3 {[%emt 0:00:28]} Rd4 {[%emt 0:01:08]} 44. Qh8 {[%emt 0:15:21]} Rxh4+ {[%emt 0:05:29]} 45. gxh4+ {[%emt 0:00:46]} Kf4 {[%emt 0:00:20]} 46. Qg7 {[%emt 0:00:09]} Kf5 {[%emt 0:01:55]} 47. Qh7 {[%emt 0:00:59]} 1-0

[Event "24th European Women Club Cup 2019"]
[Site "Ulcinj"]
[Date "2019.11.16"]
[Round "7.15"]
[White "Eric, Jovana"]
[Black "Mammadova, Gulnar"]
[Result "1/2-1/2"]
[ECO "C11"]
[WhiteElo "2314"]
[BlackElo "2369"]
[Annotator "NA"]
[PlyCount "111"]
[EventDate "2019.11.10"]
[EventType "team-tourn"]
[EventCountry "MNE"]
[SourceTitle "playchess.com"]
[Source "ChessBase"]
[SourceQuality "1"]
[WhiteTeam "Jelica PEP"]
[BlackTeam "Odlar Yurdu"]
[TimeControl "40/5400+30:1800+30"]

1. e4 {[%emt 0:00:00]} e6 {[%emt 0:00:00]} 2. d4 {[%emt 0:00:00]} d5 {[%emt 0:00:00]} 3. Nc3 {[%emt 0:00:00]} Nf6 {[%emt 0:00:00]} 4. e5 {[%emt 0:00:09]} Nfd7 {[%emt 0:00:03]} 5. f4 {[%emt 0:00:04]} c5 {[%emt 0:00:10]} 6. Nf3 {[%emt 0:00:11]} Nc6 {[%emt 0:00:05]} 7. Be3 {[%emt 0:00:15]} Be7 {[%emt 0:00:18]} 8. Qd2 {[%emt 0:00:45]} a6 {[%emt 0:00:06]} 9. Be2 {[%emt 0:02:07]} b5 {[%emt 0:00:47]} 10. O-O {[%emt 0:02:15]} b4 {[%emt 0:01:39]} 11. Nd1 {[%emt 0:00:10]} O-O {[%emt 0:03:35]} 12. Nf2 {[%emt 0:02:24]} cxd4 {[%emt 0:07:47]} 13. Nxd4 {[%emt 0:00:19]} Qc7 {[%emt 0:03:08]} 14. c3 {[%emt 0:11:45]} Nxd4 {[%emt 0:02:28]} 15. cxd4 {[%emt 0:01:08]} f5 {[%emt 0:01:14]} 16. exf6 {[%emt 0:05:35]} Nxf6 {[%emt 0:00:39]} 17. Bf3 {[%emt 0:01:14]} Bb7 {[%emt 0:03:17]} 18. Nd3 {[%emt 0:01:30]} Ne4 {[%emt 0:06:02]} 19. Bxe4 {[%emt 0:04:52]} dxe4 {[%emt 0:00:04]} 20. Rac1 {[%emt 0:03:07]} Qa5 {[%emt 0:05:29]} 21. Nc5 {[%emt 0:05:18]} Bxc5 {[%emt 0:09:07]} 22. Rxc5 {[%emt 0:01:02]} Qb6 {[%emt 0:01:07]} 23. d5 {[%emt 0:04:16]} Rad8 {[%emt 0:02:38]} 24. Qe1 {[%emt 0:12:29]} exd5 {[%emt 0:06:15]} 25. Rxd5 {[%emt 0:00:30]} Qc6 {[%emt 0:03:09]} 26. Rxd8 {[%emt 0:03:57]} Rxd8 {[%emt 0:00:02]} 27. Qxb4 {[%emt 0:00:18]} Rd3 {[%emt 0:01:38]} 28. Re1 {[%emt 0:03:49]} h6 {[%emt 0:04:01]} 29. f5 {[%emt 0:03:49]} Kh7 {[%emt 0:04:41]} 30. f6 {[%emt 0:10:05]} Rd7 {[%emt 0:11:06]} 31. Rf1 {[%emt 0:03:44]} Rf7 {[%emt 0:00:18]} 32. Qb3 {[%emt 0:04:28]} Qd5 {[%emt 0:03:39]} 33. Qxd5 {[%emt 0:04:11]} Bxd5 {[%emt 0:00:15]} 34. fxg7 {[%emt 0:00:06]} Rxf1+ {[%emt 0:05:41]} 35. Kxf1 {[%emt 0:00:04]} Bxa2 {[%emt 0:00:43]} 36. Bd4 {[%emt 0:00:13]} a5 {[%emt 0:00:33]} 37. Ke2 {[%emt 0:01:18]} Kg6 {[%emt 0:00:08]} 38. Ke3 {[%emt 0:00:41]} Kf5 {[%emt 0:00:12]} 39. h3 {[%emt 0:00:16]} h5 {[%emt 0:00:16]} 40. Bc3 {[%emt 0:00:00]} a4 {[%emt 0:00:00]} 41. g3 {[%emt 0:01:55]} Bb3 {[%emt 0:02:26]} 42. Kd4 {[%emt 0:05:14]} Bg8 {[%emt 0:04:07]} 43. Kc5 {[%emt 0:04:09]} e3 {[%emt 0:02:49]} 44. Kd4 {[%emt 0:00:12]} e2 {[%emt 0:02:35]} 45. Kd3 {[%emt 0:00:15]} e1=Q {[%emt 0:01:25]} 46. Bxe1 {[%emt 0:00:06]} Kg6 {[%emt 0:00:01]} 47. Bc3 {[%emt 0:00:13]} Be6 {[%emt 0:00:16]} 48. Ke4 {[%emt 0:07:51]} Kf7 {[%emt 0:00:06]} 49. g4 {[%emt 0:02:42]} hxg4 {[%emt 0:00:25]} 50. h4 {[%emt 0:00:07]} Kg6 {[%emt 0:00:52]} 51. Kf4 {[%emt 0:04:22]} Kh5 {[%emt 0:01:57]} 52. Ke5 {[%emt 0:03:43]} Bb3 {[%emt 0:00:17]} 53. Be1 {[%emt 0:08:53]} Kg6 {[%emt 0:00:20]} 54. Kf4 {[%emt 0:00:04]} Kxg7 {[%emt 0:00:49]} 55. Kxg4 {[%emt 0:00:04]} Kg6 {[%emt 0:00:05]} 56. Bc3 {[%emt 0:00:13]} 1/2-1/2

[Event "24th European Women Club Cup 2019"]
[Site "Ulcinj"]
[Date "2019.11.16"]
[Round "7.16"]
[White "Balajayeva, Khanim"]
[Black "Blagojevic, Tijana"]
[Result "1/2-1/2"]
[ECO "D45"]
[WhiteElo "2368"]
[BlackElo "2169"]
[Annotator "NA"]
[PlyCount "146"]
[EventDate "2019.11.10"]
[EventType "team-tourn"]
[EventCountry "MNE"]
[SourceTitle "playchess.com"]
[Source "ChessBase"]
[SourceQuality "1"]
[WhiteTeam "Odlar Yurdu"]
[BlackTeam "Jelica PEP"]
[TimeControl "40/5400+30:1800+30"]

1. Nf3 {[%emt 0:00:00]} d5 {[%emt 0:00:00]} 2. c4 {[%emt 0:00:00]} c6 {[%emt 0:00:01]} 3. d4 {[%emt 0:00:00]} Nf6 {[%emt 0:00:13]} 4. Nc3 {[%emt 0:00:00]} e6 {[%emt 0:00:23]} 5. e3 {[%emt 0:00:29]} Nbd7 {[%emt 0:00:22]} 6. Qc2 {[%emt 0:00:43]} Bd6 {[%emt 0:00:14]} 7. Bd3 {[%emt 0:00:06]} dxc4 {[%emt 0:00:42]} 8. Bxc4 {[%emt 0:00:51]} b5 {[%emt 0:00:08]} 9. Be2 {[%emt 0:00:06]} O-O {[%emt 0:01:56]} 10. O-O {[%emt 0:00:18]} Bb7 {[%emt 0:00:32]} 11. e4 {[%emt 0:00:21]} e5 $14 {[%emt 0:02:36]} 12. dxe5 {[%emt 0:00:13]} Nxe5 {[%emt 0:00:10]} 13. Nd4 {[%emt 0:00:03]} Neg4 {[%emt 0:15:48]} 14. g3 {[%emt 0:00:24]} Bxg3 {[%emt 0:02:43]} 15. hxg3 {[%emt 0:00:13]} Qxd4 {[%emt 0:00:04]} 16. Qd1 {[%emt 0:00:04]} Qxd1 {[%emt 0:02:08]} 17. Rxd1 {[%emt 0:00:03]} h5 {[%emt 0:04:46]} 18. f3 {[%emt 0:01:45]} Ne5 {[%emt 0:00:19]} 19. Be3 {[%emt 0:00:58]} Rfe8 {[%emt 0:10:22]} 20. Rd6 {[%emt 0:04:16]} Re6 {[%emt 0:04:46]} 21. Rad1 {[%emt 0:01:44]} Rxd6 {[%emt 0:00:20]} 22. Rxd6 {[%emt 0:00:03]} Ne8 {[%emt 0:01:58]} 23. Rd1 {[%emt 0:01:56]} Nf6 {[%emt 0:04:49]} 24. Bd4 {[%emt 0:10:57]} Ng6 {[%emt 0:05:03]} 25. e5 {[%emt 0:16:35]} Nd7 {[%emt 0:07:38]} 26. f4 {[%emt 0:00:26]} h4 {[%emt 0:04:05]} 27. Bg4 {[%emt 0:00:58]} Ndf8 {[%emt 0:00:28]} 28. f5 {[%emt 0:01:35]} Bc8 {[%emt 0:00:12]} 29. e6 {[%emt 0:13:14]} fxe6 {[%emt 0:05:13]} 30. fxg6 e5 {[%emt 0:00:05]} 31. Bf3 {[%emt 0:05:30]} exd4 {[%emt 0:00:14]} 32. Bxc6 {[%emt 0:00:19]} Rb8 {[%emt 0:03:40]} 33. Rxd4 {[%emt 0:00:16]} Bb7 {[%emt 0:08:26]} 34. Bxb7 {[%emt 0:07:56]} Rxb7 {[%emt 0:00:05]} 35. Rd8 {[%emt 0:00:06]} hxg3 {[%emt 0:01:29]} 36. Ne4 {[%emt 0:07:21]} Rb6 {[%emt 0:06:55]} 37. Nd6 {[%emt 0:00:15]} Rc6 {[%emt 0:00:48]} 38. Nf5 {[%emt 0:01:10]} Re6 {[%emt 0:00:48]} 39. b4 {[%emt 0:06:23]} a6 {[%emt 0:01:22]} 40. Kg2 {[%emt 0:00:00]} Re5 {[%emt 0:00:00]} 41. Nd4 {[%emt 0:01:32]} Re3 {[%emt 0:03:42]} 42. Rc8 {[%emt 0:25:56]} Re4 {[%emt 0:04:28]} 43. Nc6 {[%emt 0:03:41]} Re6 {[%emt 0:01:57]} 44. a3 {[%emt 0:00:38]} Re3 {[%emt 0:02:09]} 45. Nb8 {[%emt 0:06:53]} Rd3 {[%emt 0:02:37]} 46. Nxa6 {[%emt 0:00:24]} Rd2+ {[%emt 0:03:25]} 47. Kg1 {[%emt 0:01:34]} Rd1+ {[%emt 0:00:05]} 48. Kg2 {[%emt 0:00:09]} Rd2+ {[%emt 0:00:06]} 49. Kxg3 {[%emt 0:00:39]} Rd6 {[%emt 0:00:10]} 50. Nc5 {[%emt 0:02:13]} Rxg6+ {[%emt 0:00:17]} 51. Kf4 {[%emt 0:00:36]} Rf6+ {[%emt 0:11:09]} 52. Ke3 {[%emt 0:01:08]} Rf7 {[%emt 0:02:23]} 53. Ra8 {[%emt 0:03:55]} Re7+ {[%emt 0:00:40]} 54. Kf3 {[%emt 0:00:27]} Kf7 {[%emt 0:00:37]} 55. Ne4 {[%emt 0:00:24]} Rd7 {[%emt 0:02:40]} 56. Nc5 {[%emt 0:01:08]} Re7 {[%emt 0:00:37]} 57. Ra5 {[%emt 0:00:12]} Ne6 {[%emt 0:00:15]} 58. Nxe6 {[%emt 0:01:09]} Kxe6 {[%emt 0:00:05]} 59. Rxb5 {[%emt 0:01:07]} Ra7 {[%emt 0:00:04]} 60. Ke4 {[%emt 0:00:14]} Rxa3 {[%emt 0:00:12]} 61. Rb6+ {[%emt 0:00:04]} Kd7 {[%emt 0:00:21]} 62. Kd4 {[%emt 0:01:06]} Kc7 {[%emt 0:00:17]} 63. Rg6 {[%emt 0:00:04]} Ra1 {[%emt 0:00:50]} 64. Kc5 {[%emt 0:00:04]} Rh1 {[%emt 0:00:35]} 65. Rxg7+ {[%emt 0:00:03]} Kb8 {[%emt 0:00:05]} 66. b5 {[%emt 0:00:08]} Rh6 {[%emt 0:00:05]} 67. Kb4 {[%emt 0:00:07]} Rf6 {[%emt 0:00:08]} 68. Ka5 {[%emt 0:00:14]} Rh6 {[%emt 0:00:07]} 69. b6 {[%emt 0:00:22]} Rh1 {[%emt 0:00:11]} 70. Ka6 {[%emt 0:00:03]} Ra1+ {[%emt 0:00:04]} 71. Kb5 {[%emt 0:00:02]} Rb1+ {[%emt 0:00:05]} 72. Ka6 {[%emt 0:00:03]} Ra1+ {[%emt 0:00:03]} 73. Kb5 {[%emt 0:00:06]} Rb1+ {[%emt 0:00:04]} 1/2-1/2